Cogmind - Beta 16 @@@ ROGUE MODE // 2025.10.25 @ 16:37:31 Player: Suslik Result: Destroyed by CD-G0K(j) with Overtuned Pulse Rifle Performance ------------- Evolutions (0) 0 Regions Visited (3) 600 Robots Destroyed (18) 90 Value Destroyed (526) 526 Prototype IDs (8) 160 Alien Tech Used (0) 0 Bonus (785) 785 TOTAL SCORE: 2161 Bonus ------- Registered with UFD 300 Met Optimus in HQ 500 Friendly Fire -15 Cogmind --------- Core Integrity 0/250 Matter 283/300 Energy 80/140 System Corruption 4% Temperature Warning (305) Movement Treading (320) Ox2 Location -9/Scraptown Parts ------- > --- POWER (1) -------- Light Deuterium Engine > --- PROPULSION (2) --- Light Treads > --- UTILITY (2) ------ High-capacity Storage Unit > --- WEAPON (2) ------- Assault Rifle > --- INVENTORY (20) --- Scrap Suit Cooling System Disposable Heat Sink Weight Redist. System Improved Signal Interpreter Seismic Detector Medium Reactive Plating Force Field A0-MCA's Component Scanner Mapping Drone Bay (3/3) Heavy Rocket Launcher Remote Datajack Mining Laser CPS Tube (2) CPS Tube (2) CPS Tube (2) Ripteeth Peak State ------------ > --- POWER ------------ Ion Engine > --- PROPULSION ------- Wheel Compact Wheel > --- UTILITY ---------- High-capacity Storage Unit Seismic Detector > --- WEAPON ----------- Battle Rifle Battle Rifle > --- INVENTORY -------- Scrap Shield Fragment Scrap Shield Fragment Scrap Shield Fragment Scrap Shield Fragment SUBCON Basin [Rating: 27] Favorites ----------- Power Ion Engine Engine Ion Engine Propulsion Compact Wheel Treads Light Treads Leg Aluminum Leg Wheel Compact Wheel Utility High-capacity Storage Unit Device Improved Terrain Scanner Storage High-capacity Storage Unit Protection Light Armor Plating Weapon Particle Gun Energy Gun Particle Gun Energy Cannon Light EM Pulse Cannon Ballistic Gun Battle Rifle Ballistic Cannon Battle Cannon Special Weapon Mining Laser Build | -11 -10 -10 -9 ------- Run | Yrd Mat Sub Scr Slots Evolved . | . . . . Power . | . . . . Propulsion . | . . . . Utility . | . . . . Weapon . | . . . . Parts Attached 29 | 4 4 10 11 Power 3 | . . 1 2 Engine 3 | . . 1 2 Core . | . . . . Reactor . | . . . . Propulsion 7 | 3 1 3 . Treads 2 | . . 2 . Leg . | . . . . Wheel 5 | 3 1 1 . Hover . | . . . . Flight . | . . . . Utility 8 | 1 2 1 4 Device 6 | 1 1 . 4 Storage 1 | . 1 . . Processor . | . . . . Hackware . | . . . . Protection 1 | . . 1 . Artifact . | . . . . Weapon 11 | . 1 5 5 Energy Gun 2 | . 1 . 1 Energy Cannon 1 | . . . 1 Ballistic Gun 5 | . . 2 3 Ballistic Cannon 2 | . . 2 . Launcher . | . . . . Special Weapon 1 | . . 1 . Impact Weapon . | . . . . Slashing Weapon . | . . . . Piercing Weapon . | . . . . Special Melee Weapon . | . . . . Unidentified Prototypes . | . . . . Parts Lost 17 | . . 12 5 Power 2 | . . 2 . Propulsion 4 | . . 3 1 Utility 4 | . . 3 1 Weapon 7 | . . 4 3 Highest Loss Streak 4 | . . 4 4 To Critical Strikes 1 | . . 1 . Average Backups 15 | 7 8 12 17 Power 1 | 1 1 1 . Propulsion 1 | 4 3 2 . Utility 5 | . 1 3 7 Weapon 5 | 1 2 5 6 Tool/Special . | . . . . Unused Backups 29 | 6 . 2 21 Power 2 | 1 . 1 . Propulsion 2 | 2 . . . Utility 11 | 1 . . 10 Weapon 8 | 2 . 1 5 Tool/Special 6 | . . . 6 Average Slot Usage (%) 82 | . 100 95 72 Engine 7 | . 14 13 2 Treads 5 | . . 9 2 Wheel 15 | . 28 17 13 Device 12 | . 14 11 12 Storage 14 | . 14 14 14 Energy Gun 9 | . 14 1 13 Ballistic Gun 14 | . 14 16 13 Ballistic Cannon 2 | . . 5 . Peak Build Rating 27 | 9 9 27 22 Average Rating 12 | 8 8 10 14 On Entrance 6 | 6 9 8 4 Avg Prop Armor Cover (%) 13 | . . 20 13 Naked Turns . | . . . . Heaviest Build 53 | 13 48 52 53 Greatest Support 40 | 32 26 40 20 Greatest Overweight (x) 3 | . 1 2 3 Average Overweight (x) 1 | . . 1 2 Largest Inventory Capacity 20 | 8 20 20 20 Average Capacity 19 | 8 14 20 20 Most Carried 20 | 8 11 20 20 Average Carried 17 | 7 8 16 19 Final Capacity 20 | 8 20 20 20 Final Carried 18 | 8 11 14 18 Class Distribution -------------------- 100% | Mutant Dominant Class ---------------- Mutant | -10/Materials Mutant | -10/Subcaves Mutant | -9/Scraptown Resources | -11 -10 -10 -9 ----------- Run | Yrd Mat Sub Scr Matter Collected 817 | 257 58 401 101 Remotely . | . . . . Salvage Created 660 | 145 120 244 151 Parts 49 | 12 3 22 12 Haulers Intercepted . | . . . . Recyclers Shooed . | . . . . Parts Field Recycled . | . . . . Retrieved Matter . | . . . . Parts Self-Destructed . | . . . . Prevented . | . . . . Parts Restored . | . . . . Kills | -11 -10 -10 -9 ------- Run | Yrd Mat Sub Scr Combat Hostiles Destroyed 12 | . 2 7 3 Guns 6 | . 2 3 1 Cannons 6 | . . 4 2 Classes Destroyed 9 | 3 2 1 3 Worker 1 | 1 . . . Tunneler 3 | 3 . . . Recycler 1 | 1 . . . Watcher 1 | . 1 . . Grunt 2 | . 2 . . Subdweller 7 | . . 7 . Federalist 1 | . . . 1 Guru 1 | . . . 1 Scrapper 1 | . . . 1 Best Kill Streak 3 | 2 2 3 3 Combat Bots Only 3 | . 2 3 3 Max Kills in Single Turn 1 | 1 1 1 1 Gunslinging . | . . . . Exploded . | . . . . Melee . | . . . . Uniques/NPCs Destroyed . | . . . . Combat | -11 -10 -10 -9 -------- Run | Yrd Mat Sub Scr Hostile Shots Fired 120 | . 15 75 30 Missed 32 | . 3 24 5 Hits 88 | . 12 51 25 Projectile 88 | . 12 51 25 AOE 4 | . . 3 1 Critical Strikes 6 | . . 5 1 Damage Taken 1747 | . 145 1180 422 Core 273 | . 36 159 78 Absorbed by Shields . | . . . . Core Remaining (%) 100 | 100 . . . Volleys Fired 106 | 17 18 63 8 Largest 2 | 2 2 2 2 Hottest 100 | 60 50 100 93 Shots Fired 181 | 33 34 103 11 Gun 131 | 33 34 57 7 Cannon 32 | . . 28 4 Launcher . | . . . . Special 18 | . . 18 . Kinetic 123 | 17 18 85 3 Thermal 54 | 16 16 18 4 Explosive . | . . . . Electromagnetic 4 | . . . 4 Robot Hit Streak 25 | 5 12 25 6 Robot Miss Streak 3 | 2 1 3 3 Penetration Max . | . . . . Secondary Targets . | . . . . Shots Hit Robots 93 | 19 22 44 8 Core Hits 35 | 8 8 14 5 Critical Kills . | . . . . Critical Parts Destroyed . | . . . . Critical Strikes 4 | . . 4 . Blast 4 | . . 4 . Melee Attacks . | . . . . Impact . | . . . . Slashing . | . . . . Piercing . | . . . . Sneak Attacks . | . . . . Combat Hostiles . | . . . . Follow-up Attacks . | . . . . Damage Inflicted 1270 | 182 181 767 140 Guns 717 | 182 181 289 65 Cannons 553 | . . 478 75 Explosions . | . . . . Melee . | . . . . Ramming . | . . . . Kinetic 944 | 63 94 767 20 Thermal 251 | 119 87 . 45 Explosive . | . . . . Electromagnetic 75 | . . . 75 Impact . | . . . . Slashing . | . . . . Piercing . | . . . . Highest Corruption 4 | . . . 4 Average Corruption 3 | . . . 3 Corruption Purged . | . . . . Corruption Blocked . | . . . . Effects 5 | . . . 5 Message Errors 2 | . . . 2 Matter Fused 1 | . . . 1 Data Loss (minor) 1 | . . . 1 Weapon Failures 1 | . . . 1 Overload Shots . | . . . . Overflow Damage . | . . . . Projectiles . | . . . . Explosions . | . . . . Melee . | . . . . Knockbacks 7 | . . 7 . Impact . | . . . . Kinetic 7 | . . 7 . Secondary . | . . . . Self-Inflicted Damage . | . . . . Shots . | . . . . Rammed . | . . . . Targets Rammed . | . . . . Kicked . | . . . . Crushed . | . . . . Highest Temperature 300 | 40 115 . 300 Average Temperature 57 | 21 49 . 134 Received Heat Transfer 487 | . 84 222 181 Siege Activations . | . . . . Martial Activations . | . . . . Shielding Activations . | . . . . Robots Disrupted . | . . . . Combat Hostiles . | . . . . Robots Corrupted . | . . . . Combat Hostiles . | . . . . Parts Fried . | . . . . Impact Corruptions . | . . . . Robots Melted . | . . . . Combat Hostiles . | . . . . Parts Melted . | . . . . Heat Transferred 636 | 275 250 . 111 Parts Sabotaged . | . . . . Parts Stolen . | . . . . Parts Stripped . | . . . . Power Chain Reactions . | . . . . Alert | -11 -10 -10 -9 ------- Run | Yrd Mat Sub Scr Maximum Alert Level . | . . . . Low Security (%) 100 | 100 100 . . Level 1 . | . . . . Level 2 . | . . . . Level 3 . | . . . . Level 4 . | . . . . Level 5 . | . . . . High Security . | . . . . Max Security . | . . . . Peak Influence 40 | 10 40 . . Initial 3 | . 3 . . Average 6 | 1 10 . . Influence Increases 103 | 25 78 . . Destroy 0b10 Robot/C 40 | . 40 . . Destroy 0b10 Robot/NC 30 | 25 5 . . Destroy Leader 12 | . 12 . . Successful Hack 6 | . 6 . . Lose Combat Pursuer 15 | . 15 . . Influence Decreases 103 | 20 63 20 . Entered New Map 12 | . 2 10 . Time Decay 91 | 20 61 10 . Squads Dispatched . | . . . . Investigation . | . . . . Extermination . | . . . . Reinforcement . | . . . . Assault . | . . . . Garrison . | . . . . Intercept . | . . . . Searches Triggered . | . . . . Construction Impeded . | . . . . Haulers Reinforced . | . . . . Active Scanning Responses . | . . . . Cargo Convoy Interrupts . | . . . . Stealth | -11 -10 -10 -9 --------- Run | Yrd Mat Sub Scr Distress Signals 1 | . 1 . . Communications Jammed . | . . . . Distress Signals . | . . . . Times Spotted 33 | . 5 16 12 Peak Tracking Total 7 | . 3 4 7 Tactical Retreats 3 | . 1 2 . Traps | -11 -10 -10 -9 ------- Run | Yrd Mat Sub Scr Traps Triggered . | . . . . Indirectly . | . . . . Trap Hack Attempts . | . . . . Triggered . | . . . . Disarmed . | . . . . Reprogrammed . | . . . . Reused . | . . . . Traps Extracted . | . . . . Installed . | . . . . Triggered . | . . . . Machines | -11 -10 -10 -9 ---------- Run | Yrd Mat Sub Scr Machines Disabled 1 | . . 1 . Max in Single Turn 1 | . . 1 . Machines Repaired . | . . . . Machines Dismantled . | . . . . Machines Sabotaged . | . . . . Overloaded Fab Kills . | . . . . Hacking | -11 -10 -10 -9 --------- Run | Yrd Mat Sub Scr Machines Accessed 12 | . 2 3 7 Terminals 2 | . 2 . . Fabricators . | . . . . Repair Stations . | . . . . Recycling Units . | . . . . Scanalyzers . | . . . . Garrison Access . | . . . . Total Hacks 63 | . 9 6 48 Successful 58 | . 4 6 48 Failed 5 | . 5 . . Catastrophic . | . . . . Database Lockouts . | . . . . Manual 9 | . 6 . 3 Terminals 9 | . 9 . . Fabricators . | . . . . Repair Stations . | . . . . Recycling Units . | . . . . Scanalyzers . | . . . . Garrison Access . | . . . . Terminal Hacks 55 | . 1 6 48 Record 51 | . . 4 47 Prototype ID Bank 1 | . 1 . . Open Door 1 | . . 1 . Proto ID Catalog 1 | . . . 1 Release Object 1 | . . 1 . Fabricator Hacks . | . . . . Repair Station Hacks . | . . . . Recycling Unit Hacks . | . . . . Scanalyzer . | . . . . Garrison Access Hacks . | . . . . Unauthorized Hacks 3 | . 3 . . Terminals 3 | . 3 . . Assimilate 1 | . 1 . . Botnet 1 | . 1 . . Operators 1 | . 1 . . Fabricators . | . . . . Repair Stations . | . . . . Recycling Units . | . . . . Scanalyzers . | . . . . Garrison Access . | . . . . Data Cores Recovered . | . . . . Used . | . . . . Hacking Detections 2 | . 2 . . Full Trace Events . | . . . . Feedback Events . | . . . . Feedback Blocked . | . . . . Robot Schematics Acquired . | . . . . Robots Built . | . . . . Authchips . | . . . . Time . | . . . . Total Robot Build Rating . | . . . . Part Schematics Acquired . | . . . . Parts Built . | . . . . Authchips . | . . . . Time . | . . . . Total Part Build Rating . | . . . . Part Studies Acquired . | . . . . Parts Repaired . | . . . . Time . | . . . . Parts Recycled . | . . . . Recycled Matter . | . . . . Retrieved Matter . | . . . . Retrieved Components . | . . . . Parts Scanalyzed . | . . . . Part Schematics Acquired . | . . . . Parts Damaged . | . . . . Bothacking | -11 -10 -10 -9 ------------ Run | Yrd Mat Sub Scr Used RIF Installer . | . . . . Robots Hacked . | . . . . Non-combat . | . . . . Combat . | . . . . Robot Hacks Applied . | . . . . Relay Couplers Released . | . . . . Fabnet Peak Effective % . | . . . . Robots Rewired . | . . . . Allies Hacked . | . . . . Hacks Repelled . | . . . . Allies | -11 -10 -10 -9 -------- Run | Yrd Mat Sub Scr Total Allies . | . . . . Largest Group . | . . . . Highest-Rated Group . | . . . . Highest-Rated Ally . | . . . . Total Orders . | . . . . Ally Attacks . | . . . . Total Damage . | . . . . Kills . | . . . . Allies Corrupted . | . . . . Allies Melted 4 | . . . 4 Intel | -11 -10 -10 -9 ------- Run | Yrd Mat Sub Scr Active Infowar (turns) 3905 | 95 203 1564 2043 Terrain 2014 | 95 32 315 1572 Seismic 1891 | . 171 1249 471 Robot Analysis Total . | . . . . Derelict Logs Recovered 4 | . . 3 1 Drone Launches . | . . . . Drone Recoveries . | . . . . Exploration | -11 -10 -10 -9 ------------- Run | Yrd Mat Sub Scr Turns Passed 5012 | 126 203 1884 2799 Spaces Moved 3162 | 75 127 1150 1810 Core . | . . . . Treads 204 | . . 200 4 Legs 6 | 6 . . . Wheels 2952 | 69 127 950 1806 Hover . | . . . . Flight . | . . . . Fastest Speed 90 | 90 90 105 130 Average Speed 131 | 95 98 130 135 Slowest Speed 320 | 120 105 240 320 Overloaded Moves . | . . . . Propulsion Burnouts . | . . . . Robots Hopped . | . . . . Potential Cave-ins . | . . . . Cave-ins Triggered . | . . . . Exploration Rate (%) 44 | 5 23 65 86 Regions Visited 3 Branch Regions 2 Pre-discovered Areas 1 | . . . 1 Known Exits Taken . | . . . . Unknown Exits Taken 3 | 1 1 1 . Scrap Searched 6 | . . 3 3 Spaces Dug . | . . . . Terrain Destroyed . | . . . . Melee . | . . . . Projectile . | . . . . AOE . | . . . . Terrain Rammed . | . . . . Walls Destroyed . | . . . . Machines Disabled . | . . . . Actions | -11 -10 -10 -9 --------- Run | Yrd Mat Sub Scr Total 3856 | 100 182 1415 2159 Wait 425 | . 26 109 290 Move 3159 | 74 126 1149 1810 Hop . | . . . . Pick Up 71 | 2 4 44 21 Fast Attach 9 | 3 1 . 5 Attach 11 | . . 7 4 Detach . | . . . . Swap 15 | 1 3 8 3 Drop 58 | 3 4 34 17 Fire 106 | 17 18 63 8 Melee . | . . . . Ram . | . . . . Kick . | . . . . Crush . | . . . . Escape Stasis . | . . . . Rewire 1 | . . . 1 Trap . | . . . . Miscellaneous 1 | . . 1 . Route ------- -11/Scrapyard -10/Materials (discovered 2 exits: [*Min] / *Sub) -10/Subcaves (discovered 3 exits: [*Mat] / Rec / *Scr) -9/Scraptown (discovered 2 exits: [*Fac x2]) History --------- Turn | Location | Event 26 | -11/Scrapyard | Discovered new exit (range 3) 127 | -11/Scrapyard | Entered Materials 128 | -10/Materials | Met a group of wandering Federalists 302 | -10/Materials | Discovered new exit (range 14) 311 | -10/Materials | Build established: Mutant 328 | -10/Materials | Discovered new exit (range 3) 330 | -10/Materials | Entered Subcaves 331 | -10/Subcaves | Continued accompanying wandering Federalists (4) 334 | -10/Subcaves | Identified exit to Recycling 552 | -10/Subcaves | Learned Materials interactive machine intel 572 | -10/Subcaves | Shifting Twisted Machinery released Sub. Beam Cannon 574 | -10/Subcaves | Shifting Twisted Machinery released Battle Rifle 575 | -10/Subcaves | Shifting Twisted Machinery released Battle Rifle 577 | -10/Subcaves | Shifting Twisted Machinery released Sub. Power Source 594 | -10/Subcaves | Wandering Federalist uncovered a shortcut to Scraptown 610 | -10/Subcaves | Learned Materials emergency access door positions 954 | -10/Subcaves | Released subatomizers from SUBCON Basin 992 | -10/Subcaves | Found SUBCON Basin 1075 | -10/Subcaves | Discovered new exit (range 9) 1134 | -10/Subcaves | Shifting Twisted Machinery released Sub. Power Source 1135 | -10/Subcaves | Shifting Twisted Machinery released Sub. Machine Gun 1180 | -10/Subcaves | A swath of the cavern ceiling suddenly collapsed 1225 | -10/Subcaves | A swath of the cavern ceiling suddenly collapsed 1318 | -10/Subcaves | Visited Clippyterm 1321 | -10/Subcaves | Learned Factory garrison access intel 1710 | -10/Subcaves | A Subdweller sparked back to life 1710 | -10/Subcaves | A Subdweller sparked back to life 1710 | -10/Subcaves | A Subdweller sparked back to life 1763 | -10/Subcaves | Lost 4 parts (1p1u2w) 2137 | -10/Subcaves | Lost 3 parts (1n2w) 2148 | -10/Subcaves | Core integrity fell below 50% 2214 | -10/Subcaves | Entered Scraptown 2586 | -9/Scraptown | Scanned Subdweller tech in exchange for log data 2590 | -9/Scraptown | Learned location of Extension (-4) 2648 | -9/Scraptown | Discovered new exit (range 7) 2793 | -9/Scraptown | Visited IN-MT5's Study 2844 | -9/Scraptown | Visited SPCMW 2918 | -9/Scraptown | Visited UFD Registry 2918 | -9/Scraptown | Registered with UFD as "Pulsestep" 2940 | -9/Scraptown | Visited Cave Peace 2979 | -9/Scraptown | Visited Symbiants 3615 | -9/Scraptown | Visited Spacefarers 3710 | -9/Scraptown | Visited Shadow of the Wyrm 4037 | -9/Scraptown | Visited Science Guys 4193 | -9/Scraptown | Visited Cartography Club 4397 | -9/Scraptown | Visited Science Testing Area 4425 | -9/Scraptown | Visited A0-MCA Data Center 4433 | -9/Scraptown | Given a C+ rating by A0-MCA 4440 | -9/Scraptown | Found A0-MCA's Component Scanner 4496 | -9/Scraptown | Found Scrap Suit 4564 | -9/Scraptown | Discovered new exit (range 3) 4691 | -9/Scraptown | Met Optimus 4691 | -9/Scraptown | Accepted into 0bPrime 4843 | -9/Scraptown | Civil war broke out across Scraptown 4938 | -9/Scraptown | Visited Abandonware Association 4995 | -9/Scraptown | Core integrity fell below 20% 5013 | -9/Scraptown | Destroyed by CD-G0K(j) with Overtuned Pulse Rifle Last Messages --------------- 04971_ Acquired Lgt. Deuterium Engine. 04972_ Acquired 10 matter. 04975_ Acquired Mak. Microdissipator Network. 04977_ Dropped Mak. Microdissipator Network. 04977_ Acquired 10 matter. 04978_ Com. Wheel destroyed. 04978_ IO-23Y(j) suffers critical hit (Burn). 04983_ IO-23Y(j) heat spikes uncontrollably. 04983_ IO-23Y(j) overheating. 04991_ Slug penetrates Wall. 04994_ System corrupted: Gauss Rifle jammed. 04997_ System corrupted: Component data lost. 05000_ Slug penetrates MG-W6I(p). 05000_ MG-W6I(p) destroyed. 05002_ Gauss Rifle destroyed. 05003_ Particle Gun destroyed. 05004_ P7-DQU(j) destroyed. 05006_ Critical hit (Burn: +50). 05010_ YX-PVP(g) destroyed. 05012_ Lgt. EM Pulse Cannon destroyed. Map ----- +----------------------------------------------------+ | | | | | | | ????????????#????#???????????????????????????????? | | ?????????????????????????????#???????????????????? | | ?????????????????????????????????????????????????? | | ??????????????????#??????????????????????????????? | | ?????????????????????????????????#???????????????? | | ???????????????????#?????????????????????????????? | | ???????????????#?????????????????????????????????? | | ?????????????????#?????????????????#?????????????? | | ?????????????????????#?????#?????#???????????????? | | ????????????????##?#?###???????#?????????????????? | | ?#??#????????????#??????????#????????????????????? | | #?????#????????#??????##????????#####??????#?????? | | ?##???????????????????#?????????#"""#?????#??????? | | ?###################??#####?#???#" "#????????????? | | #"""##"""##""|##"""##### ##????# < #????????????? | | #"" ##""!##""|## !"###;=[[ ######!*!##???????????? | | #"" !!*/* !!%=[!% #???????????? | | # %![!= =* #???????????? | | #######################=!%j###########?#?????????? | | ?????#?#??????????????##jj##???????#?????????????? | | #????????#?#?#?????????#[%##?????????#????????#??? | | #??##?##??????##########!=##????#?#??????????????? | | ##?##??#?#???#"""""""""#!@#??????????????????????? | | ###########?##"""""""""#[[#??#???????????????????? | | # #??#"""""""""#%!#???"??????????????????? | | # #??#"""""""""#= #???????????#??????????? | | # ####""" """# #??????????????????????? | | # #??#""" ! """# #?"" "???????#?????????? | | # ##?#"!" """# #" ?????????????????? | | # #??#""" """"# #""" ?????????????????? | | # #?##""" """# # ? ????????????????? | | # #?## "# #""""??????#???????????? | | ###### ####?###### ####!!!##=##??######??????????? | | ###### ########### ####!%==#%"###""[""####???????? | | """""" """"""* " "*"=[=%["!"## =!%= "#???????? | | %!=[%%[%!=%%%!%[=!%"## *%! ! ""#???????? | | !*%!== ==*![!*!==*="## [[ "#???????? | | %[=!%! ![*!=[! !"## """ ??????????? | | = =!*! [!=[!![ "## "#?????????????? | | [ !=*!%[* "#?????????????? | | """"""""""""" """" """""= % ## """" ??????????? | | """"""""""""""""""""""" ## "?????????? | | #### ################" %= ## "#???????? | | ###???????#""! = "############???????? | | X"#?????####""=** "#????"?????????????? | | "" "" ##????????#""%[! #??? "#???????????? | | "" "" X"#?#?#??###""=![ "#?? "#???????????? | +----------------------------------------------------+ Best States ------------- Heat Dissipation 25 Energy Generation 15 Energy Capacity 250 Matter Stores 300 Matter Capacity 300 Sight Range 16 Terrain Scan Range 16 Terrain Scan Density 10 Armor Coverage 150 Evasion (%) 45 Recoil Reduction 2 Item Schematics ----------------- None Robot Schematics ------------------ None Fabricated ------------ Nothing Repaired ---------- Nothing Studied --------- None Alien Tech Used ----------------- None Achievements -------------- Civilization 2243 Link The Feds Strength In Numbers Challenges ------------ None Game ------ Seed CryofiberRocketWall Manual? 0 Play Time 00:50:22 Cumulative 227.9 hours Start 2025.10.25 @ 15:45:05 End 2025.10.25 @ 16:37:31 Sessions 1 Manual Loads 0 Difficulty Rogue Special Mode None Game No. 201 Rogue 191 Adventurer 10 Explorer 0 Win Type - Total 4 Types 3/0/0/1/0/0/0/0/0/0 Lore% 42 Gallery% 60 Achievement% 37 Wizard Run 0 Options --------- Layout 1 ASCII 0 Keyboard 1 Movement Numpad Keybinds 0 Fullscreen 1 Font 32/SmallcapsGlow Map View 50x40 Zoom Use 0% Tactical HUD 1 Map Filters NONE Filters NONE Steam 1 RUN: 41ea363a-a6b6-4f87-a4ad-1114c4aeb11c